bitfinex/quotes_ETHUSD_20260304
["timestamp","ask_amount","ask_price","bid_price","bid_amount"]
[1772613754395,8.86170906,2021.6,2020.5,5.16583872]
[1772613754596,6.42386498,2021.9,2020.6,3.92852123]
[1772613754919,3.91511514,2021.7,2020.5,1.23731749]
[1772613755126,5.62792294,2021.7,2020.5,5.16583872]
[1772613755427,1.23652191,2021.8,2020.7,3.92852123]
[1772613756093,4.94608764,2021.9,2020.8,5.16565503]
[1772613756595,8.86120278,2021.9,2020.8,5.16565503]
[1772613757224,8.86120278,2021.9,2020.9,0.45471243]
[1772613757421,8.86120278,2021.9,2021.0,0.45471243]
[1772613757624,8.86120278,2021.9,2021.1,0.45471243]
[1772613757800,4.94542741,2022.1,2021.2,0.45471243]
[1772613758000,4.94542741,2022.1,2021.3,1.69149246]
[1772613758200,1.23621618,2022.3,2021.4,0.45471243]
[1772613758401,1.23621618,2022.3,2021.5,0.45471243]
[1772613758608,1.23621618,2022.3,2021.7,3.46249708]
[1772613758609,0.002,2022.2,2021.7,3.46249708]
[1772613758814,8.86197989,2022.4,2021.8,3.34012666]
[1772613759012,1.23621618,2022.3,2021.9,2.88541423]
[1772613759212,1e-08,2022.2,2021.6,3.46249708]
[1772613759728,1e-08,2022.2,2021.4,3.92852123]
[1772613759897,1e-08,2022.2,2021.5,0.44938849]
[1772613760099,1e-08,2022.2,2021.5,1.23670541]
[1772613761399,1e-08,2022.2,2021.6,3.92852123]
[1772613761632,1e-08,2022.2,2021.8,3.92852123]
[1772613762135,1e-08,2022.2,2021.5,5.16522664]
[1772613762301,1e-08,2022.2,2021.6,4.37627325]
[1772613762500,1e-08,2022.2,2021.8,3.92852123]
[1772613762998,0.003,2022.6,2022.0,3.92852123]
[1772613763205,0.003,2023.0,2022.2,3.92852123]
[1772613763404,0.003,2023.4,2022.6,3.92852123]
[1772613764132,0.003,2023.4,2022.8,3.92852123]
[1772613764337,4.94119353,2023.9,2022.7,1.23597172]
[1772613764338,0.00729877,2025.2,2023.3,3.92752123]
[1772613764500,0.00729877,2025.2,2023.7,3.92852123]
[1772613764501,1.7128078,2024.7,2023.7,3.92852123]
[1772613764700,3.91511514,2024.6,2023.3,3.92852123]
[1772613764929,1.7128078,2024.7,2023.3,3.92852123]
[1772613765129,3.91511514,2024.9,2023.3,3.92852123]
[1772613765429,2.9545702,2025.2,2023.5,3.92852123]
[1772613765841,1.2417624,2025.2,2023.8,3.92852123]
[1772613766334,1.2417624,2025.2,2024.0,3.92852123]
[1772613766727,2.9545702,2025.2,2024.0,3.92852123]
[1772613766932,3.91511514,2024.8,2023.6,3.92852123]
[1772613767427,3.91511514,2025.1,2023.8,3.92852123]
[1772613767804,1.7128078,2025.0,2023.8,3.92852123]
[1772613768131,1.23462887,2024.9,2023.8,3.92852123]
[1772613768326,1.731,2024.8,2023.8,3.92852123]
[1772613768529,5.42544787,2024.9,2023.8,5.16381294]
[1772613768530,1.732,2024.7,2023.8,5.16381294]
[1772613768844,1.732,2024.7,2023.8,5.16382109]
[1772613769038,1.733,2024.8,2023.8,3.92852123]
[1772613769198,1.7128078,2024.4,2023.4,4.11463119]
[1772613769524,1.7128078,2024.1,2023.0,4.11463119]
[1772613769726,1.735,2024.0,2023.0,4.11463119]
[1772613770119,1.735,2024.0,2023.0,5.35039492]
[1772613770120,1.23517786,2024.0,2023.0,5.35039492]
[1772613770435,1.7128078,2023.8,2022.5,4.11463119]
[1772613770635,1.737,2023.9,2022.5,4.11463119]
[1772613771127,1.737,2023.9,2022.7,4.11463119]
[1772613771128,1.739,2023.9,2022.7,4.11463119]
[1772613771704,1.7128078,2023.9,2023.5,0.001]
[1772613771907,1.74,2023.8,2022.7,4.11463119]
[1772613772109,4.9404159,2024.2,2022.9,5.82743899]
[1772613772409,2.97611684,2024.1,2023.3,0.001]
[1772613772715,1.23511684,2024.1,2023.3,0.001]
[1772613773338,1.23509991,2024.2,2023.3,4.11563119]
[1772613773511,4.93978673,2024.4,2023.3,4.11563119]
[1772613774406,4.93978673,2024.4,2023.5,4.11463119]
[1772613774606,4.93978673,2024.4,2023.3,1.23655948]
[1772613774813,4.93978673,2024.4,2023.4,4.11463119]
[1772613775036,1.23475082,2024.7,2023.6,4.11463119]
[1772613775448,1.747,2024.6,2023.6,4.11463119]
[1772613776334,1.747,2024.6,2023.3,1.23657742]
[1772613776335,1.2348728,2024.5,2023.3,1.23657742]
[1772613776532,1.2348728,2024.5,2023.3,1.23658833]
[1772613776937,1.2348728,2024.5,2023.3,1.23659189]
[1772613777137,1.2348728,2024.5,2023.5,4.11463119]
[1772613777356,1.749,2024.4,2023.5,4.11463119]
[1772613777656,1.75,2024.4,2023.5,4.11463119]
[1772613778050,1.2348728,2024.5,2023.5,4.11463119]
[1772613778237,1.75,2024.4,2023.6,2.82595694]
[1772613778436,1.23499481,2024.3,2023.6,1.23542202]
[1772613778945,1.17223643,2024.7,2023.6,1.23542202]
[1772613778946,1.45300579,2026.3,2023.7,2.82539838]
[1772613779144,6.91797224,2028.0,2025.7,4.11463119]
[1772613779360,5.4236214,2027.9,2026.3,4.11463119]
[1772613779559,1.718,2027.8,2026.4,6.94002957]
[1772613779759,2.40503883,2027.9,2026.4,4.11463119]
[1772613780057,1.17223643,2027.7,2026.6,4.11463119]
[1772613780246,1.23276745,2028.0,2026.8,4.11463119]
[1772613780444,1.17223643,2027.9,2026.9,2.81986514]
[1772613780753,1.17223643,2027.9,2026.3,4.37637556]
[1772613780754,1.724,2027.8,2026.4,4.11463119]
[1772613780955,5.36305543,2027.9,2026.4,4.11463119]
[1772613780956,1.17223643,2027.6,2026.5,2.82903284]
[1772613781151,5.36305543,2027.6,2026.2,5.92102705]
[1772613781379,1.726,2027.5,2026.2,2.53434522]
[1772613781652,1.727,2027.4,2026.2,3.76816734]
[1772613781824,2.64661876,2027.8,2026.3,7.50131302]
[1772613782024,4.93096646,2028.3,2026.6,4.11463119]
[1772613782231,1.23231626,2028.7,2027.2,4.11463119]
[1772613782435,1.17223643,2028.5,2027.2,4.11463119]
[1772613782652,5.42313526,2028.7,2026.8,5.54861199]
[1772613782653,1.17223643,2028.2,2026.8,5.34806305]
[1772613782858,7.09605543,2028.3,2026.8,5.34807648]
[1772613783058,1.734,2028.2,2026.8,4.11463119]
[1772613783271,1.23152709,2030.0,2028.1,4.11463119]
[1772613783453,1.23152709,2030.0,2027.2,3.51670929]
[1772613783454,1.17223643,2028.7,2027.2,7.50131302]
[1772613783772,1.17223643,2028.1,2026.8,4.11463119]
[1772613783954,4.190819,2028.4,2026.8,5.34809857]
[1772613784158,1.17223643,2027.9,2026.8,4.11463119]
[1772613784332,1.17223643,2027.9,2026.4,4.11463119]
[1772613784333,1.23304562,2027.5,2026.4,4.11463119]
[1772613784537,1.23304562,2027.5,2026.4,5.34832863]
[1772613784734,1.23304562,2027.5,2026.5,4.11463119]
[1772613784934,4.931179,2028.0,2026.5,4.11463119]
[1772613785242,1.17223643,2028.2,2026.7,4.11463119]
[1772613785451,1.17223643,2027.9,2026.3,4.11463119]
[1772613785638,1.17223643,2027.6,2026.3,4.11463119]
[1772613785837,1.714,2028.0,2026.5,4.11463119]
[1772613786064,0.002,2028.0,2026.8,4.11463119]
[1772613786535,0.002,2028.0,2027.1,4.11463119]
[1772613786738,3.51670929,2029.6,2027.1,4.11463119]
[1772613786739,6.59506804,2029.3,2027.4,4.11463119]
[1772613786962,6.59506804,2029.3,2027.7,4.11463119]
[1772613786963,0.002,2028.5,2027.7,4.11463119]
[1772613787865,1.17223643,2028.2,2026.9,4.62009245]
[1772613788032,4.190819,2028.4,2026.3,5.34837535]
[1772613788033,1.17223643,2027.6,2026.3,5.34837535]
[1772613788239,2.86623643,2027.6,2026.3,5.34837384]
[1772613788437,1.17223643,2027.4,2026.3,5.34839861]
[1772613788666,2.92904562,2027.5,2026.3,5.34839861]
[1772613788863,1.23304562,2027.5,2025.8,4.11463119]
[1772613789072,1.7,2027.4,2025.8,4.11463119]
[1772613789277,1.7,2027.4,2025.9,5.28686762]
[1772613789576,1.17223643,2027.0,2025.6,1.23416015]
[1772613789778,5.36305543,2026.2,2025.0,5.0]
[1772613789986,5.36305543,2026.2,2024.4,4.93966114]
[1772613789987,5.36305543,2025.9,2024.4,1.2349338]
[1772613790481,4.190819,2025.8,2024.4,1.2349338]
[1772613790661,1.23414128,2025.7,2024.4,1.2349338]
[1772613790872,1.23414128,2025.7,2024.5,1.17223643]
[1772613791474,1.23395853,2026.0,2024.5,1.17223643]
[1772613791876,1.23395853,2026.0,2024.5,5.28686762]
[1772613792039,4.93583415,2026.2,2024.6,4.11463119]
[1772613792242,0.33025767,2029.5,2027.7,4.11463119]
[1772613792564,0.33025767,2029.5,2026.4,1.31084828]
[1772613792565,1.17223643,2029.2,2027.5,3.36955501]
[1772613792766,1.17223643,2028.6,2027.3,4.93245078]
[1772613792966,1.17223643,2028.6,2027.1,8.30243414]
[1772613792967,1.17223643,2028.3,2027.1,4.60284394]
[1772613793157,1.17223643,2028.3,2027.2,2.81177663]
[1772613793351,1.17223643,2028.3,2026.7,1.23348778]
[1772613793352,1.17223643,2028.0,2026.7,1.23348778]
[1772613793553,1.17223643,2028.0,2026.8,2.81416766]
[1772613793755,2.46330772,2028.0,2026.9,2.81416766]
[1772613794064,5.36305543,2028.4,2027.0,2.81346942]
[1772613794246,1.17223643,2028.1,2026.5,1.23361422]
[1772613794450,5.36305543,2028.1,2026.6,2.81378911]
[1772613794646,1.23274161,2028.0,2026.7,2.81378911]
[1772613794848,1.17223643,2027.8,2026.7,2.81378911]
[1772613795157,1.17223643,2027.8,2026.5,1.23361592]
[1772613795471,1.17223643,2027.8,2026.3,1.23372573]
[1772613795680,1.17223643,2027.8,2026.4,2.81635467]
[1772613795980,1.17223643,2027.7,2026.5,2.81635467]
[1772613796190,1.17223643,2027.7,2026.3,1.23372573]
[1772613796343,1.17223643,2027.7,2026.4,2.8154258]
[1772613796548,1.17223643,2027.7,2026.5,2.8154258]
[1772613796748,1.17223643,2027.7,2026.2,5.34843147]
[1772613796749,1.2329848,2027.6,2026.2,5.34843147]
[1772613796964,5.36305543,2027.4,2025.8,1.23408036]
[1772613797187,1.17223643,2027.1,2025.9,2.81703847]
[1772613797494,1.17223643,2027.1,2026.0,2.81703847]
[1772613797644,1.17223643,2027.1,2025.7,1.23412141]
[1772613797987,1.17223643,2027.1,2025.8,2.818504]
[1772613798278,1.17223643,2027.1,2025.9,2.818504]
[1772613798485,4.190819,2027.3,2025.7,1.23412141]
[1772613798486,4.190819,2027.3,2026.0,2.81971876]
[1772613798779,1.23322809,2027.2,2026.2,1.23383673]
[1772613798977,1.23322809,2027.2,2025.9,1.17223643]
[1772613799151,1.23304562,2027.5,2026.2,1.17223643]
[1772613799344,1.23304562,2027.5,2026.3,2.81780946]
[1772613799571,6.40649483,2027.5,2026.3,2.81780946]
[1772613799770,2.40528205,2027.5,2025.9,1.17323643]
[1772613799949,5.17344921,2027.4,2026.0,2.81925288]
[1772613800156,5.17344921,2027.4,2026.1,2.81925288]
[1772613800472,5.17344921,2027.4,2026.2,2.81925288]
[1772613800666,5.17344921,2027.4,2025.9,1.17323643]
[1772613800971,1.23316726,2027.3,2026.1,1.23389763]
[1772613801200,1.23316726,2027.3,2026.2,2.82270838]
[1772613801478,5.49048782,2027.2,2025.9,1.23498399]
[1772613801674,5.49048782,2027.2,2026.0,2.82704831]
[1772613801860,5.49048782,2027.2,2026.1,2.82704831]
[1772613802065,5.49048782,2027.2,2026.2,2.82704831]
[1772613802260,5.49048782,2027.2,2026.3,2.82704831]
[1772613802455,5.49048782,2027.2,2025.9,1.23498399]
[1772613802659,5.49048782,2027.2,2026.0,2.83109257]
[1772613802865,6.72377675,2027.1,2026.1,2.83109257]
[1772613803065,6.72377675,2027.1,2026.2,2.83109257]
[1772613803357,5.49048782,2026.9,2025.9,0.001]
[1772613804977,6.7241419,2026.5,2025.9,0.001]
[1772613805552,1.17223643,2026.4,2025.9,0.001]
[1772613805759,6.66272425,2026.4,2025.3,3.36955501]
[1772613805977,6.66272425,2026.4,2025.1,4.60406185]
[1772613806180,6.66272425,2026.4,2025.1,1.23450364]
[1772613806394,5.49048782,2026.2,2025.1,1.23450364]
[1772613806688,6.66272425,2026.1,2024.9,4.60415954]
[1772613806867,6.72444635,2026.0,2024.9,4.60415954]
[1772613807069,6.72444635,2026.0,2024.9,1.23460453]
[1772613807386,6.72444635,2026.0,2025.0,0.44589827]
[1772613807685,4.93583415,2026.4,2024.9,4.60415954]
[1772613807686,4.93409304,2026.8,2024.9,1.23460453]
[1772613807883,5.49048782,2026.4,2025.1,3.36955501]
[1772613808085,5.49048782,2026.4,2025.2,0.44580499]
[1772613808288,5.49048782,2026.4,2025.3,0.44652492]
[1772613808462,6.66272425,2026.2,2025.2,3.36955501]
[1772613808653,6.66272425,2026.2,2025.3,0.4465211]
[1772613808984,1.782,2026.7,2025.5,3.36955501]
[1772613808985,1.23359321,2026.6,2025.5,3.36955501]
[1772613809187,1.23359321,2026.6,2025.6,0.44662745]
[1772613809889,1.23359321,2026.6,2025.6,3.81618246]
[1772613809890,6.72408103,2026.6,2025.6,3.81618246]
[1772613810086,6.72408103,2026.6,2025.7,0.44662745]
[1772613811062,6.72408103,2026.6,2025.8,1.23408036]
[1772613812703,6.72408103,2026.6,2025.7,3.36955501]
[1772613812986,7.89631746,2026.6,2025.8,0.44726344]
[1772613813192,7.89631746,2026.6,2025.7,1.23413531]
[1772613813358,5.49048782,2026.5,2025.6,0.001]
[1772613813559,5.49048782,2026.5,2025.6,1.23519476]
[1772613814084,5.49048782,2026.5,2025.6,0.001]
[1772613814681,1.17223643,2026.3,2025.6,0.001]
[1772613814893,5.49048782,2026.2,2025.6,0.001]
[1772613815267,6.72777531,2026.5,2025.6,0.001]
[1772613815501,12.21826313,2026.5,2025.6,0.001]
[1772613815669,5.49048782,2026.4,2025.6,0.001]
[1772613816169,5.49048782,2026.2,2024.9,1.23462887]
[1772613816369,1.17223643,2026.3,2024.9,1.23462887]
[1772613816370,5.49048782,2025.9,2024.9,1.23462887]
[1772613816573,1.17223643,2026.3,2024.9,1.23462887]
[1772613816574,7.28448782,2025.8,2024.9,1.23462887]
[1772613816773,5.49048782,2025.7,2024.9,1.23462887]
[1772613817184,1.23420221,2025.6,2024.6,4.93851548]
[1772613817385,6.72463687,2025.7,2024.6,4.93851548]
[1772613817671,3.02911507,2025.8,2024.6,4.93851548]
[1772613818472,5.49048782,2025.7,2024.5,1.2348728]
[1772613819196,1.23420221,2025.6,2024.5,1.2348728]
[1772613819368,6.72435323,2026.2,2024.7,6.6750409]
[1772613819789,6.72435323,2026.2,2024.7,5.50280447]
[1772613820168,6.72435323,2026.2,2024.5,1.2348728]
[1772613820699,5.49048782,2025.8,2024.5,7.9099137]
[1772613821499,5.49048782,2025.8,2024.6,5.50280447]
[1772613821688,3.79579987,2026.1,2024.8,6.6750409]
[1772613822076,5.49048782,2026.0,2024.5,7.9099137]
[1772613822403,10.42568177,2026.3,2024.8,6.6750409]
[1772613822904,6.72426366,2026.3,2024.8,6.6750409]
[1772613823297,6.72426366,2026.3,2025.1,1.17223643]
[1772613823298,6.72429011,2026.3,2025.1,1.17223643]
[1772613823596,6.72429011,2026.3,2025.0,5.50280447]
[1772613824269,5.49048782,2026.7,2025.1,6.6750409]
[1772613824474,5.49048782,2026.7,2025.1,5.50280447]
[1772613824475,5.49048782,2026.5,2025.1,5.50280447]
[1772613825292,6.72438545,2026.1,2024.9,1.23462887]
[1772613825482,5.49048782,2025.9,2024.9,1.23462887]
[1772613825880,6.72429195,2026.3,2024.9,6.73743334]
[1772613826281,5.49048782,2026.1,2024.9,1.23462887]
[1772613826891,5.49048782,2025.8,2024.9,1.23462887]
[1772613827207,4.93510339,2026.4,2024.9,1.23462887]
[1772613827208,5.49248782,2026.9,2025.2,5.50280447]
[1772613827511,5.49048782,2026.7,2025.4,1.17223643]
[1772613827807,0.002,2026.4,2025.4,1.17223643]
[1772613828198,0.002,2026.4,2025.3,6.73718949]
[1772613828593,5.24221075,2026.3,2025.3,1.23438502]
[1772613829413,6.47600499,2026.3,2025.2,0.001]
[1772613830608,6.47599166,2026.3,2025.2,0.001]
[1772613830781,5.24221075,2026.3,2025.2,1.21976583]
[1772613831103,6.47600117,2026.3,2025.2,0.001]
[1772613832381,6.47600117,2026.3,2025.2,1.21976583]
[1772613832599,6.47600117,2026.3,2025.2,0.001]
[1772613833613,6.47606298,2026.2,2025.2,0.001]
[1772613833821,5.24221075,2026.2,2025.2,0.001]
[1772613834007,5.24221075,2026.2,2025.2,1.21976583]
[1772613834198,1.793,2026.4,2025.2,6.75520952]
[1772613834394,3.02672104,2026.4,2025.2,6.75520952]
[1772613834598,1.23572104,2026.4,2025.2,6.75520952]
[1772613834792,3.02572523,2026.4,2025.2,6.75520952]
[1772613835003,1.792,2026.4,2025.2,6.75520952]
[1772613835295,3.02572024,2026.4,2025.2,6.75520952]
[1772613835824,8.26792599,2026.4,2025.3,1.23438502]
[1772613836382,8.26692599,2026.4,2025.3,1.23438502]
[1772613837118,6.46097658,2026.3,2025.3,1.23438502]
[1772613837605,1.23395853,2026.0,2025.2,0.001]
[1772613837919,6.47616928,2026.0,2025.2,0.001]
[1772613839512,5.24221075,2026.0,2025.2,0.001]
[1772613840318,1.70667846,2025.7,2025.2,0.001]
[1772613840525,2.60230915,2025.9,2025.0,0.001]
[1772613840526,0.001,2025.2,2025.0,0.001]
[1772613842328,9.6285199,2025.9,2025.0,0.001]
[1772613842525,10.862552,2025.9,2025.0,0.001]
[1772613842886,9.6285199,2025.9,2025.0,0.001]
[1772613843090,5.24221075,2026.3,2025.0,5.53644369]
[1772613843527,5.24221075,2026.3,2025.1,5.53544369]
[1772613844517,5.24221075,2026.3,2025.2,1.23444598]
[1772613844518,6.47599347,2026.3,2025.2,1.23444598]
[1772613844702,5.24221075,2026.3,2025.2,1.23444598]
[1772613844905,6.47599001,2026.3,2025.2,1.23444598]
[1772613845621,5.24221075,2026.3,2025.2,6.76988967]
[1772613846236,6.4759895,2026.3,2025.2,6.76988967]
[1772613846618,5.24221075,2026.3,2025.2,6.76988967]
[1772613848627,6.4759938,2026.3,2025.2,6.76988967]
[1772613849004,5.24221075,2026.3,2025.2,6.76988967]
[1772613850634,0.002,2026.4,2025.2,6.76988967]
[1772613850942,0.002,2026.4,2025.4,5.53544369]
[1772613851123,0.002,2026.4,2025.7,5.53544369]
[1772613851321,0.002,2026.4,2025.8,1.676]
[1772613851550,1.776,2027.1,2025.8,1.676]
[1772613851551,1.776,2027.1,2026.0,1.6394793]
[1772613851738,5.24221075,2027.5,2026.3,1.6394793]
[1772613851937,5.24221075,2027.5,2026.5,5.53544369]
[1772613852845,5.24221075,2027.5,2026.6,1.23359321]
[1772613854040,0.003,2027.9,2026.6,1.23359321]
[1772613854041,5.24521075,2027.9,2026.7,5.53544369]
[1772613854842,5.24521075,2027.9,2026.8,1.23347148]
[1772613855224,5.24521075,2027.9,2026.9,5.53544369]
[1772613855425,0.003,2027.9,2027.0,5.53544369]
[1772613855723,1.6424793,2028.9,2027.3,5.53544369]
[1772613855724,5.24121075,2028.6,2027.3,5.53544369]
[1772613855957,5.24121075,2028.6,2027.4,7.20844369]
[1772613856327,5.24121075,2028.6,2027.5,7.17492299]
[1772613856657,0.003,2028.9,2027.6,5.53544369]
[1772613856826,5.24521075,2028.9,2027.7,1.232924]
[1772613857021,0.002,2027.8,2027.7,1.232924]
[1772613857291,5.24521075,2028.9,2027.8,0.001]
[1772613859167,0.003,2028.9,2027.8,5.11467126]
[1772613859456,0.002,2028.9,2027.9,5.11367126]
[1772613859665,5.08914522,2029.5,2028.2,5.11367126]
[1772613859972,5.08914522,2029.4,2027.8,5.11367126]
[1772613860260,5.08914522,2029.7,2028.4,5.11367126]
[1772613860468,4.92659375,2030.0,2028.4,5.11367126]
[1772613860469,5.08914522,2030.0,2028.4,5.11367126]
[1772613860642,5.08914522,2030.0,2028.7,5.11367126]
[1772613860843,1.23158776,2029.9,2028.9,1.23219478]
[1772613861033,5.08914522,2029.9,2028.9,1.23219478]
[1772613861228,0.1591283,2030.1,2028.9,6.41773641]
[1772613862559,5.17827397,2030.1,2028.9,8.08973641]
[1772613863081,0.1591283,2030.1,2029.0,5.18554163]
[1772613863582,0.1591283,2030.1,2029.2,5.18554163]
[1772613864167,1e-08,2030.1,2029.2,5.18554163]
[1772613864466,1e-08,2030.1,2029.2,5.18454163]
[1772613864956,1e-08,2030.1,2029.3,1.2319519]
[1772613866726,5.01914568,2030.1,2029.3,1.2319519]
[1772613866932,5.01914568,2030.1,2029.1,4.92780761]
[1772613867132,6.25061482,2030.1,2029.1,4.92780761]
[1772613867342,5.01914568,2030.1,2029.1,4.92780761]
[1772613868259,1e-08,2030.1,2029.2,5.18554163]
[1772613868458,1e-08,2030.1,2029.1,4.92780761]
[1772613868759,1e-08,2030.1,2029.2,5.18554163]
[1772613868999,1e-08,2030.1,2029.1,0.41738539]
[1772613869264,0.002,2029.9,2029.2,5.18554163]
[1772613869564,0.00729877,2031.2,2029.8,1.70000452]
[1772613869858,5.01914567,2031.7,2030.2,2.53284522]
[1772613870060,5.01914567,2031.7,2030.0,5.18554163]
[1772613870231,5.01914567,2031.7,2029.8,5.18554163]
[1772613870436,2.53074609,2031.8,2029.8,5.18554163]
[1772613870437,5.01914567,2031.6,2029.8,5.18554163]
[1772613870765,5.01914567,2031.6,2030.1,5.18554163]
[1772613870949,5.01914567,2031.4,2030.2,1.23140577]
[1772613871839,5.01914567,2031.4,2030.2,6.4169474]
[1772613872064,1.23058881,2031.6,2030.2,6.4169474]
[1772613872359,6.24973448,2031.6,2030.2,6.4169474]
[1772613872539,5.01914567,2031.6,2030.3,1.666]
[1772613872740,7.45254865,2031.8,2030.3,1.666]
[1772613872741,5.23273689,2031.8,2031.4,3.36955501]
[1772613872941,1e-08,2031.7,2031.2,4.21588269]
[1772613873152,1e-08,2031.7,2030.8,5.61592501]
[1772613873153,7.69397655,2031.8,2031.0,5.44680254]
[1772613873353,1.22949662,2031.7,2030.9,4.21588269]
[1772613873754,1.22949662,2031.7,2030.6,1.2311632]
[1772613874068,1.70000452,2031.5,2030.7,0.43895303]
[1772613874242,1.70000452,2031.5,2030.5,1.23117901]
[1772613874660,5.01914567,2031.4,2030.4,1.23124138]
[1772613874861,5.01914567,2031.4,2030.1,1.23146643]
[1772613875163,4.66450114,2031.7,2030.3,6.41688675]
[1772613875667,5.01914567,2031.3,2030.3,1.23134512]
[1772613876288,1.70000452,2030.8,2029.7,1.23170911]
[1772613876439,5.10001356,2031.5,2029.7,1.23170911]
[1772613876440,5.01914567,2031.3,2029.7,8.11725526]
[1772613876640,6.71915019,2031.4,2030.1,5.18554163]
[1772613877044,6.2498846,2031.3,2030.2,1.23140577]
[1772613878769,6.2498846,2031.3,2030.1,10.11116472]
[1772613878770,1.70000452,2030.5,2029.6,6.41728435]
[1772613878946,1.739,2030.6,2029.6,1.23174272]
[1772613879743,1.23110257,2030.7,2029.6,1.23174272]
[1772613879946,1.74,2030.6,2029.6,1.23174272]
[1772613880373,1.23110257,2030.7,2029.6,1.23174272]
[1772613880586,1.23107165,2030.8,2029.6,6.41728435]
[1772613883078,2.97186012,2031.1,2029.9,5.18554163]
[1772613883246,2.97186012,2031.1,2030.0,6.41706872]
[1772613883446,1.23086012,2031.1,2030.0,6.41706872]
[1772613883664,1.23086012,2031.1,2030.1,5.18554163]
[1772613884882,6.25000579,2031.1,2030.0,1.23152709]
[1772613885663,5.01914567,2030.9,2029.8,6.41815772]
[1772613885860,1.741,2030.8,2029.8,6.41815772]
[1772613886986,5.01914567,2030.7,2029.8,0.001]
[1772613887286,6.76014567,2030.7,2029.8,1.23263375]
[1772613887470,1.2311632,2030.6,2029.8,0.001]
[1772613887678,2.9721632,2030.6,2029.8,5.18654163]
[1772613887877,2.9721632,2030.6,2029.8,0.001]
[1772613888278,8.48825459,2030.6,2029.8,0.001]
[1772613888996,1.74,2030.5,2029.8,0.001]
[1772613889491,1.23104195,2030.8,2029.8,0.001]
[1772613890882,6.74713334,2030.8,2029.8,0.001]
[1772613891258,5.51609139,2030.7,2029.8,0.001]
[1772613891456,1.2311632,2030.6,2029.8,0.001]
[1772613891681,1.739,2030.5,2029.8,0.001]
[1772613892186,1.2311632,2030.6,2029.8,0.001]
[1772613892656,5.51609139,2030.5,2029.8,0.001]
[1772613892856,1.2311632,2030.6,2029.8,0.001]
[1772613892857,5.51609139,2030.8,2029.8,0.001]
[1772613893088,2.96914463,2030.7,2029.8,5.71335619]
[1772613893265,1.23114463,2030.7,2029.8,5.71335619]
[1772613893457,2.96914463,2030.7,2029.9,1.23158776]
[1772613893659,10.43956581,2031.1,2029.9,6.94394395]
[1772613893984,1.738,2030.8,2029.9,6.94394395]
[1772613894356,10.43956581,2031.1,2030.0,6.15089116]
[1772613894563,12.17583008,2031.4,2030.2,5.71235619]
[1772613894760,12.17583008,2031.4,2030.3,6.15070954]
[1772613894976,12.17583008,2031.4,2030.4,0.43835335]
[1772613895292,12.17583008,2031.4,2030.5,0.43885712]
[1772613895494,12.17583008,2031.4,2030.3,5.71235619]
[1772613895688,12.17583008,2031.4,2030.4,1.67009643]
[1772613895995,12.17583008,2031.4,2030.5,0.43885796]
[1772613896172,12.17583008,2031.4,2030.6,0.43950187]
[1772613896374,12.17583008,2031.4,2030.4,1.23123847]
[1772613896600,12.17583008,2031.4,2030.5,0.43960006]
[1772613896768,12.17583008,2031.4,2030.6,0.43960006]
[1772613897091,12.17583008,2031.4,2030.4,1.23123847]
[1772613897293,10.43883008,2031.4,2030.5,0.4395956]
[1772613897474,10.43883008,2031.4,2030.6,0.4395956]
[1772613897804,1.736,2031.3,2030.7,0.4395956]
[1772613897995,1.23079952,2031.2,2030.8,0.4395956]
[1772613898201,1.23079952,2031.2,2030.9,0.44155219]
[1772613898390,2.96579952,2031.2,2031.0,0.44155219]
[1772613898586,2.96579952,2031.2,2030.5,6.94355731]
[1772613898891,2.96579952,2031.2,2030.6,0.441355]
[1772613899092,2.96579952,2031.2,2030.7,0.441355]
[1772613899295,1.23055719,2031.6,2030.8,6.15371119]
[1772613899494,1.735,2031.5,2030.9,0.441355]
[1772613899795,1.23055719,2031.6,2031.0,0.441355]
[1772613900101,7.21609591,2031.3,2030.2,10.63784521]
[1772613900299,4.66464845,2031.5,2030.2,10.63784521]
[1772613900300,1.23064393,2031.5,2030.4,5.71235619]
[1772613900498,4.92190717,2031.8,2030.6,6.92449656]
[1772613900669,0.005,2032.0,2031.4,5.71235619]
[1772613900868,0.005,2032.0,2031.6,5.71235619]
[1772613901069,0.005,2032.0,2031.7,2.84200979]
[1772613901383,1.22983077,2032.8,2031.9,5.71235619]
[1772613901571,1.22983077,2032.8,2032.0,2.84200979]
[1772613901770,1.22983077,2032.8,2032.1,2.84200979]
[1772613901992,1.21214037,2032.6,2031.5,5.71235619]
[1772613902173,6.74610369,2032.5,2031.6,2.84598833]
[1772613902378,6.74610369,2032.5,2031.7,2.84598833]
[1772613902379,2.94514037,2032.4,2031.7,2.84598833]
[1772613902592,2.94514037,2032.4,2031.8,2.84598833]
[1772613902797,5.04217336,2032.5,2031.9,2.84598833]
[1772613902798,1.2300123,2032.5,2031.9,2.84598833]
[1772613902984,2.9630123,2032.5,2032.0,2.84598833]
[1772613903188,2.9630123,2032.5,2031.7,5.71235619]
[1772613903392,1.2300123,2032.5,2031.8,8.57024311]
[1772613903593,1.21214037,2032.9,2031.9,2.85759551]
[1772613903897,5.16331672,2033.0,2031.8,5.71235619]
[1772613903898,1.732,2032.6,2031.8,5.71235619]
[1772613904200,1.732,2032.6,2031.1,5.71235619]
[1772613904201,1.21214037,2032.3,2031.1,5.71235619]
[1772613904371,1.23007282,2032.4,2031.3,5.71235619]
[1772613904574,1.21214037,2031.9,2030.9,5.71235619]
[1772613904775,1.21214037,2031.9,2031.0,2.86045267]
[1772613904982,2.44221319,2032.4,2031.2,5.71235619]
[1772613905194,1.732,2032.3,2031.2,5.71235619]
[1772613905476,1.732,2032.2,2031.2,5.71235619]
[1772613906190,1.732,2032.2,2031.4,5.71235619]
[1772613906191,2.96130116,2032.1,2031.4,5.71235619]
[1772613906892,0.003,2033.5,2031.8,5.71235619]
[1772613906893,4.91979748,2032.7,2031.8,5.71235619]
[1772613907096,4.91979748,2032.7,2032.0,5.71235619]
[1772613907772,5.10728646,2032.4,2031.3,5.71235619]
[1772613907975,1.21214037,2032.2,2031.3,5.71235619]
[1772613908171,1.23007282,2032.4,2031.3,2.44286603]
[1772613908374,2.96107282,2032.4,2031.5,5.71235619]
[1772613908572,5.61652668,2032.3,2031.1,5.71235619]
[1772613908786,5.61652668,2032.3,2031.0,1.23092072]
[1772613908787,1.731,2032.3,2031.3,5.71235619]
[1772613909889,1.21214037,2032.2,2031.3,5.71235619]
[1772613910099,2.96125441,2032.1,2031.3,5.71235619]
[1772613910409,2.96125441,2032.1,2031.3,6.94309106]
[1772613910410,1.23025441,2032.1,2031.3,6.94309106]
[1772613910583,1.23025441,2032.1,2031.6,0.001]
[1772613911308,2.96025441,2032.1,2031.6,0.001]
[1772613911511,1.23025441,2032.1,2031.6,0.001]
[1772613912297,2.44239478,2032.1,2031.6,0.001]